fUST/lending_fUST_20251013
["ID","MTS","AMOUNT","RATE_DAILY","PERIOD"]
[391078717,1760305834152,-151.0,0.00023499,2]
[391078719,1760305834162,-151.0,0.00023499,2]
[391078721,1760305834171,-151.0,0.00023499,2]
[391078723,1760305834181,-151.0,0.00023499,7]
[391078725,1760305834190,-151.0,0.00023499,2]
[391078727,1760305834200,-299.228441,0.00023499,7]
[391078728,1760305834210,-151.0,0.00023499,7]
[391078730,1760305834219,-151.0,0.00023499,7]
[391078732,1760305834228,-151.0,0.00023499,7]
[391078734,1760305834237,-151.0,0.00023499,7]
[391078736,1760305834248,-174.074912,0.00023499,7]
[391078738,1760305834257,-151.0,0.00023499,7]
[391078740,1760305834267,-151.0,0.00023499,7]
[391078742,1760305834276,-151.0,0.00023499,7]
[391078744,1760305834286,-151.0,0.00023499,7]
[391078746,1760305834296,-151.0,0.00023499,7]
[391078748,1760305834306,-320.975556,0.00023499,7]
[391078750,1760305834315,-320.975556,0.00023499,7]
[391078752,1760305834325,-320.975556,0.00023499,7]
[391078754,1760305834334,-320.975556,0.00023499,7]
[391078756,1760305834343,-151.0,0.00023499,7]
[391078758,1760305834353,-152.432686,0.00023499,7]
[391078760,1760305834362,-151.0,0.00023499,7]
[391078762,1760305834371,-189.171479,0.00023499,7]
[391078763,1760305834381,-202.225034,0.00023499,7]
[391078765,1760305834391,-202.225034,0.00023499,7]
[391078767,1760305834400,-202.225034,0.00023499,7]
[391078769,1760305834410,-202.225034,0.00023499,7]
[391078771,1760305834419,-7012.15390328,0.00023499,2]
[391078772,1760305834428,-251.015786,0.00023499,7]
[391078773,1760305834438,-251.015786,0.00023499,7]
[391078774,1760305834447,-251.015786,0.00023499,7]
[391078775,1760305834457,-251.015786,0.00023499,7]
[391078776,1760305834466,-151.0,0.00023499,7]
[391078777,1760305834476,-151.0,0.00023499,7]
[391078778,1760305834485,-192.622043,0.00023499,7]
[391078779,1760305834495,-151.0,0.00023499,7]
[391078780,1760305834504,-151.0,0.00023499,7]
[391078781,1760305834514,-151.0,0.00023499,7]
[391078782,1760305834523,-151.0,0.00023499,7]
[391078783,1760305834532,-151.0,0.00023499,7]
[391078784,1760305834541,-151.0,0.00023499,7]
[391078785,1760305834551,-151.0,0.00023499,7]
[391078786,1760305834560,-235.842284,0.00023499,7]
[391078787,1760305834569,-235.842284,0.00023499,7]
[391078788,1760305834579,-235.842284,0.00023499,7]
[391078789,1760305834588,-235.842284,0.00023499,7]
[391078790,1760305834598,-151.0,0.00023499,7]
[391078791,1760305834607,-151.0,0.00023499,7]
[391078792,1760305834617,-151.0,0.00023499,7]
[391078793,1760305834626,-151.0,0.00023499,7]
[391078794,1760305834635,-151.0,0.00023499,7]
[391078795,1760305834644,-151.0,0.00023499,7]
[391078796,1760305834654,-151.0,0.00023499,7]
[391078797,1760305834664,-152.117073,0.00023499,7]
[391078798,1760305834673,-21776.95446738,0.00023499,2]
[391078799,1760305834683,-151.0,0.00023499,7]
[391078800,1760305834693,-151.0,0.00023499,7]
[391078801,1760305834702,-220.214233,0.00023499,7]
[391078802,1760305834712,-500.0,0.00023521,2]
[391078803,1760305834722,-897.0,0.00023526,2]
[391078804,1760305834731,-241.26786,0.00023529,2]
[391078805,1760305834740,-500.0,0.00023573,2]
[391078806,1760305834749,-500.0,0.00023573,2]
[391078807,1760305834759,-500.0,0.00023573,2]
[391078808,1760305834768,-500.0,0.00023573,2]
[391078809,1760305834783,-500.0,0.00023573,2]
[391078810,1760305834792,-500.0,0.00023573,2]
[391078811,1760305834801,-500.0,0.00023573,2]
[391078812,1760305834811,-500.0,0.00023573,2]
[391078813,1760305834822,-500.0,0.00023573,2]
[391078814,1760305834831,-500.0,0.00023573,2]
[391078815,1760305834841,-897.0,0.00023581,2]
[391078816,1760305834850,-370000.0,0.00023599,2]
[391078817,1760305834860,-500.0,0.00023599,5]
[391078818,1760305834870,-500.0,0.00023599,2]
[391078819,1760305834880,-500.0,0.00023599,2]
[391078820,1760305834889,-500.0,0.00023599,2]
[391078821,1760305834898,-500.0,0.00023599,2]
[391078822,1760305834908,-500.0,0.00023599,2]
[391078823,1760305834917,-500.0,0.00023599,2]
[391078824,1760305834927,-500.0,0.00023599,2]
[391078825,1760305834937,-500.0,0.00023599,2]
[391078826,1760305834947,-500.0,0.00023599,2]
[391078827,1760305834956,-500.0,0.00023599,2]
[391078828,1760305834965,-151.0,0.00023599,7]
[391078829,1760305834975,-151.0,0.00023599,2]
[391078830,1760305834985,-151.0,0.00023599,2]
[391078831,1760305834995,-151.0,0.00023599,2]
[391078832,1760305835004,-151.0,0.00023599,7]
[391078833,1760305835015,-151.0,0.00023599,2]
[391078834,1760305835025,-151.0,0.00023599,7]
[391078835,1760305835033,-151.0,0.00023599,7]
[391078836,1760305835043,-151.0,0.00023599,7]
[391078837,1760305835052,-151.0,0.00023599,7]
[391078838,1760305835061,-151.0,0.00023599,7]
[391078839,1760305835071,-151.0,0.00023599,7]
[391078840,1760305835080,-151.0,0.00023599,7]
[391078841,1760305835089,-320.975556,0.00023599,7]
[391078842,1760305835098,-320.975556,0.00023599,7]
[391078843,1760305835107,-320.975556,0.00023599,7]
[391078844,1760305835117,-320.975556,0.00023599,7]
[391078845,1760305835126,-151.0,0.00023599,7]
[391078846,1760305835136,-151.0,0.00023599,7]
[391078847,1760305835145,-151.0,0.00023599,7]
[391078848,1760305835154,-151.0,0.00023599,7]
[391078849,1760305835163,-151.0,0.00023599,7]
[391078850,1760305835172,-151.0,0.00023599,7]
[391078851,1760305835183,-151.0,0.00023599,7]
[391078852,1760305835192,-151.0,0.00023599,7]
[391078853,1760305835201,-326.996233,0.00023599,7]
[391078854,1760305835210,-326.996233,0.00023599,7]
[391078855,1760305835219,-326.996233,0.00023599,7]
[391078856,1760305835228,-326.996233,0.00023599,7]
[391078857,1760305835237,-151.0,0.00023599,7]
[391078858,1760305835247,-151.0,0.00023599,7]
[391078859,1760305835256,-151.0,0.00023599,7]
[391078860,1760305835265,-151.0,0.00023599,7]
[391078861,1760305835275,-202.225034,0.00023599,7]
[391078862,1760305835284,-202.225034,0.00023599,7]
[391078863,1760305835294,-202.225034,0.00023599,7]
[391078864,1760305835303,-202.225034,0.00023599,7]
[391078865,1760305835312,-251.015786,0.00023599,7]
[391078866,1760305835321,-251.015786,0.00023599,7]
[391078867,1760305835331,-251.015786,0.00023599,7]
[391078868,1760305835340,-251.015786,0.00023599,7]
[391078869,1760305835349,-151.0,0.00023599,7]
[391078870,1760305835358,-258.718148,0.00023599,7]
[391078871,1760305835368,-151.0,0.00023599,7]
[391078872,1760305835377,-151.0,0.00023599,7]
[391078873,1760305835386,-151.0,0.00023599,7]
[391078874,1760305835395,-151.0,0.00023599,7]
[391078875,1760305835404,-151.0,0.00023599,7]
[391078876,1760305835413,-235.842284,0.00023599,7]
[391078877,1760305835422,-235.842284,0.00023599,7]
[391078878,1760305835431,-235.842284,0.00023599,7]
[391078879,1760305835440,-235.842284,0.00023599,7]
[391078880,1760305835449,-151.0,0.00023599,7]
[391078881,1760305835459,-173.392585,0.00023599,7]
[391078882,1760305835467,-151.0,0.00023599,7]
[391078883,1760305835476,-172.347786,0.00023599,7]
[391078884,1760305835485,-151.0,0.00023599,7]
[391078885,1760305835495,-151.0,0.00023599,7]
[391078886,1760305835504,-151.0,0.00023599,7]
[391078887,1760305835513,-1000.0,0.00023599,2]
[391078888,1760305835522,-1000.0,0.00023599,2]
[391078889,1760305835531,-1000.0,0.00023599,2]
[391078890,1760305835540,-1000.0,0.00023599,2]
[391078891,1760305835549,-1000.0,0.00023599,2]
[391078892,1760305835558,-1000.0,0.00023599,2]
[391078893,1760305835568,-1000.0,0.00023599,2]
[391078894,1760305835580,-1000.0,0.00023599,2]
[391078895,1760305835591,-1000.0,0.00023599,2]
[391078896,1760305835602,-1000.0,0.00023599,2]
[391078897,1760305835612,-1000.0,0.00023599,2]
[391078898,1760305835622,-1000.0,0.00023599,2]
[391078899,1760305835631,-1000.0,0.00023599,2]
[391078900,1760305835641,-1000.0,0.00023599,2]
[391078901,1760305835650,-1000.0,0.00023599,2]
[391078902,1760305835661,-1000.0,0.00023599,2]
[391078903,1760305835671,-1000.0,0.00023599,2]
[391078904,1760305835680,-1000.0,0.00023599,2]
[391078905,1760305835692,-1000.0,0.00023599,2]
[391078906,1760305835701,-1000.0,0.00023599,2]
[391078907,1760305835711,-1000.0,0.00023599,2]
[391078908,1760305835719,-1000.0,0.00023599,2]
[391078909,1760305835728,-1000.0,0.00023599,2]
[391078910,1760305835737,-1000.0,0.00023599,2]
[391078911,1760305835747,-1000.0,0.00023599,2]
[391078912,1760305835757,-1000.0,0.00023599,2]
[391078913,1760305835768,-1000.0,0.00023599,2]
[391078914,1760305835780,-1000.0,0.00023599,2]
[391078915,1760305835793,-1000.0,0.00023599,2]
[391078916,1760305835802,-1000.0,0.00023599,2]
[391078917,1760305835811,-1000.0,0.00023599,2]
[391078918,1760305835820,-1003.4794,0.00023599,2]
[391078919,1760305835831,-8363.24906436,0.000236,7]
[391078920,1760305835845,-1108.14956002,0.000236,7]
[391078921,1760305835856,-404.05,0.000236,7]
[391078922,1760305835870,-44357.54137562,0.000236,7]
[391078923,1760305835880,-2088.78532203,0.000236,7]
[391078924,1760305835889,-402.2877588,0.000236,7]
[391078925,1760305835898,-151.0,0.000236,7]
[391078926,1760305835909,-151.0,0.000236,2]
[391078927,1760305835919,-151.0,0.000236,2]
[391078928,1760305835928,-151.0,0.000236,2]
[391078929,1760305835938,-151.0,0.000236,7]
[391078930,1760305835948,-151.0,0.000236,2]
[391078931,1760305835958,-151.0,0.000236,7]
[391078932,1760305835967,-151.0,0.000236,7]
[391078933,1760305835977,-151.0,0.000236,7]
[391078934,1760305835988,-151.0,0.000236,7]
[391078935,1760305835998,-151.0,0.000236,7]
[391078936,1760305836010,-151.0,0.000236,7]
[391078937,1760305836020,-320.975556,0.000236,7]
[391078938,1760305836030,-320.975556,0.000236,7]
[391078939,1760305836041,-320.975556,0.000236,7]
[391078940,1760305836050,-320.975556,0.000236,7]
[391078941,1760305836060,-151.0,0.000236,7]
[391078942,1760305836071,-151.0,0.000236,7]
[391078943,1760305836080,-151.0,0.000236,7]
[391078944,1760305836092,-151.0,0.000236,7]
[391078945,1760305836101,-151.0,0.000236,7]
[391078946,1760305836112,-151.0,0.000236,7]
[391078947,1760305836122,-293.829385,0.000236,7]
[391078948,1760305836132,-326.996233,0.000236,7]
[391078949,1760305836142,-326.996233,0.000236,7]
[391078950,1760305836152,-326.996233,0.000236,7]
[391078951,1760305836161,-326.996233,0.000236,7]
[391078952,1760305836170,-151.0,0.000236,7]
[391078953,1760305836179,-2088.78532203,0.000236,7]
[391078954,1760305836188,-153.89151,0.000236,7]
[391078955,1760305836197,-151.0,0.000236,7]
[391078956,1760305836213,-402.2877588,0.000236,7]
[391078957,1760305836222,-151.0,0.000236,7]
[391078958,1760305836231,-202.225034,0.000236,7]
[391078959,1760305836240,-202.225034,0.000236,7]
[391078960,1760305836249,-202.225034,0.000236,7]
[391078961,1760305836259,-202.225034,0.000236,7]
[391078962,1760305836268,-251.015786,0.000236,7]
[391078963,1760305836277,-251.015786,0.000236,7]
[391078964,1760305836313,-251.015786,0.000236,7]
[391078965,1760305836323,-251.015786,0.000236,7]
[391078966,1760305836333,-151.0,0.000236,7]
[391078967,1760305836342,-151.0,0.000236,7]
[391078968,1760305836351,-151.0,0.000236,7]
[391078969,1760305836360,-275.15262,0.000236,7]
[391078970,1760305836371,-151.0,0.000236,7]
[391078971,1760305836380,-235.842284,0.000236,7]
[391078972,1760305836390,-235.842284,0.000236,7]
[391078973,1760305836399,-235.842284,0.000236,7]
[391078974,1760305836409,-235.842284,0.000236,7]
[391078975,1760305836418,-151.0,0.000236,7]
[391078976,1760305836427,-151.0,0.000236,7]
[391078977,1760305836436,-223.576751,0.000236,7]
[391078978,1760305836445,-151.0,0.000236,7]
[391078979,1760305836455,-953.67346916,0.00023628,5]
[391078980,1760305836464,-897.0,0.00023636,2]
[391078981,1760305836473,-897.0,0.0002369,2]
[391078982,1760305836483,-420.0,0.00023694,2]
[391078983,1760305836492,-151.0,0.00023745,7]
[391078984,1760305836502,-235.842284,0.00023745,7]
[391078985,1760305836512,-235.842284,0.00023745,7]
[391078986,1760305836521,-235.842284,0.00023745,7]
[391078987,1760305836530,-235.842287,0.00023745,7]
[391078988,1760305836539,-151.0,0.00023745,7]
[391078989,1760305836547,-151.0,0.00023745,7]
[391078990,1760305836556,-897.0,0.00023745,2]
[391078991,1760305836565,-500.0,0.00023798,2]
[391078992,1760305836574,-897.0,0.000238,2]
[391078993,1760305836583,-151.0,0.00023824,7]
[391078994,1760305836592,-151.0,0.00023824,7]
[391078995,1760305836601,-202.225034,0.00023824,7]
[391078996,1760305836610,-202.225034,0.00023824,7]
[391078997,1760305836620,-202.225034,0.00023824,7]
[391078998,1760305836630,-202.225028,0.00023824,7]
[391078999,1760305836639,-251.015786,0.00023824,7]
[391079000,1760305836649,-251.015786,0.00023824,7]
[391079001,1760305836660,-251.015786,0.00023824,7]
[391079002,1760305836669,-251.015789,0.00023824,7]
[391079003,1760305836679,-151.0,0.00023824,7]
[391079004,1760305836688,-154.896608,0.00023824,7]
[391079005,1760305836698,-897.0,0.00023855,2]
[391079006,1760305836709,-417.15472785,0.00023867,2]
[391079007,1760305836720,-2088.78532203,0.00023867,2]
[391079008,1760305836729,-160.0,0.00023878,2]
[391079009,1760305836738,-217.23489934,0.000239,2]
[391079010,1760305836747,-167.98528681,0.000239,2]
[391079011,1760305836756,-496.05530136,0.000239,2]
[391079012,1760305836764,-323.16195222,0.000239,2]
[391079013,1760305836774,-162.65533597,0.000239,2]
[391079014,1760305836787,-1073.00007226,0.000239,2]
[391079015,1760305836795,-346.63567225,0.000239,2]
[391079016,1760305836804,-2238.54166935,0.000239,2]
[391079017,1760305836813,-2740.38620429,0.000239,2]
[391079018,1760305836825,-897.0,0.0002391,2]
[391079019,1760305836834,-1000.0,0.00023913,30]
[391079020,1760305836844,-530.266,0.00023922,5]
[391079021,1760305836853,-184.718,0.00023922,5]
[391079022,1760305836863,-897.0,0.00023964,2]
[391079023,1760305836872,-500.0,0.00023973,2]
[391079024,1760305836881,-500.0,0.00023973,2]
[391079025,1760305836890,-500.0,0.00023973,2]
[391079026,1760305836899,-168.0,0.00023984,2]
[391079027,1760305836908,-200.0,0.00023999,2]
[391079028,1760305836917,-201.01608941,0.00023999,2]
[391079029,1760305836926,-8735.75,0.00024,2]
[391079030,1760305836936,-24906.27,0.00024,2]
[391079031,1760305836945,-25000.0,0.00024,2]
[391079032,1760305836954,-160.0,0.00024,7]
[391079033,1760305836963,-202.46976429,0.00024,2]
[391079034,1760305836972,-1137.269933,0.00024,7]
[391079035,1760305836981,-1137.269933,0.00024,7]
[391079036,1760305836990,-1137.269933,0.00024,7]
[391079037,1760305836999,-1137.269933,0.00024,7]
[391079038,1760305837009,-151.0,0.00024,7]
[391079039,1760305837018,-151.0,0.00024,7]
[391079040,1760305837026,-151.0,0.00024,7]
[391079041,1760305837035,-657.634753,0.00024,7]
[391079042,1760305837045,-151.0,0.00024,7]
[391079043,1760305837054,-657.634753,0.00024,7]
[391079044,1760305837064,-657.634753,0.00024,7]
[391079045,1760305837073,-657.634753,0.00024,7]
[391079046,1760305837083,-151.0,0.00024,7]
[391079047,1760305837095,-151.0,0.00024,7]
[391079048,1760305837105,-238.495112,0.00024,7]
[391079049,1760305837115,-151.0,0.00024,2]
[391079050,1760305837125,-151.0,0.00024,2]
[391079051,1760305837136,-151.0,0.00024,2]
[391079052,1760305837146,-151.0,0.00024,7]
[391079053,1760305837156,-300.218791,0.00024,2]
[391079054,1760305837167,-151.0,0.00024,7]
[391079055,1760305837177,-151.0,0.00024,7]
[391079056,1760305837187,-151.0,0.00024,7]
[391079057,1760305837197,-200.212284,0.00024,7]
[391079058,1760305837206,-158.12604,0.00024,7]
[391079059,1760305837215,-151.0,0.00024,7]
[391079060,1760305837224,-320.975556,0.00024,7]
[391079061,1760305837234,-320.975556,0.00024,7]
[391079062,1760305837243,-320.975556,0.00024,7]
[391079063,1760305837252,-320.975556,0.00024,7]
[391079064,1760305837261,-151.0,0.00024,7]
[391079065,1760305837270,-151.0,0.00024,7]
[391079066,1760305837279,-151.0,0.00024,7]
[391079067,1760305837288,-151.0,0.00024,7]
[391079068,1760305837298,-151.0,0.00024,7]
[391079069,1760305837307,-151.0,0.00024,7]
[391079070,1760305837316,-326.996233,0.00024,7]
[391079071,1760305837326,-326.996233,0.00024,7]
[391079072,1760305837336,-326.996233,0.00024,7]
[391079073,1760305837345,-326.996233,0.00024,7]
[391079074,1760305837356,-151.0,0.00024,7]
[391079075,1760305837366,-897.0,0.00024019,2]
[391079076,1760305837376,-160.0,0.00024054,2]
[391079077,1760305837385,-897.0,0.00024074,2]
[391079078,1760305837394,-7012.15390326,0.00024091,2]
[391079079,1760305837403,-402.2877588,0.00024095,2]
[391079080,1760305837412,-1185.8052984,0.00024096,2]
[391079081,1760305837422,-167.98528681,0.000241,2]
[391079082,1760305837431,-496.05530136,0.000241,2]
[391079084,1760305837440,-323.16195222,0.000241,2]
[391079086,1760305837449,-162.65533597,0.000241,2]
[391079088,1760305837458,-1073.00007226,0.000241,2]
[391079089,1760305837467,-346.63567225,0.000241,2]
[391079091,1760305837476,-2238.54166935,0.000241,2]
[391079094,1760305837484,-2740.38620429,0.000241,2]
[391079096,1760305837493,-770.85104,0.000241,7]
[391079098,1760305837502,-770.85104,0.000241,7]
[391079101,1760305837511,-770.85104,0.000241,7]
[391079103,1760305837519,-770.85104,0.000241,7]
[391079106,1760305837528,-151.0,0.000241,7]
[391079109,1760305837537,-151.0,0.000241,7]
[391079112,1760305837546,-151.0,0.000241,7]
[391079115,1760305837555,-151.0,0.000241,7]
[391079118,1760305837565,-151.0,0.000241,2]
[391079121,1760305837574,-151.0,0.000241,2]
[391079124,1760305837583,-151.0,0.000241,2]
[391079128,1760305837592,-151.0,0.000241,7]
[391079131,1760305837601,-151.0,0.000241,7]
[391079135,1760305837610,-151.0,0.000241,7]
[391079139,1760305837619,-151.0,0.000241,7]
[391079144,1760305837629,-320.975556,0.000241,7]
[391079148,1760305837638,-320.975556,0.000241,7]
[391079153,1760305837647,-320.975556,0.000241,7]
[391079159,1760305837656,-320.975552,0.000241,7]
[391079164,1760305837665,-273.316856,0.000241,7]
[391079168,1760305837674,-151.0,0.000241,7]
[391079174,1760305837684,-151.0,0.000241,7]
[391079177,1760305837693,-151.0,0.000241,7]
[391079181,1760305837702,-151.0,0.000241,7]
[391079185,1760305837711,-151.0,0.000241,7]
[391079188,1760305837720,-326.996233,0.000241,7]
[391079189,1760305837729,-326.996233,0.000241,7]
[391079191,1760305837739,-326.996233,0.000241,7]
[391079193,1760305837748,-326.996233,0.000241,7]
[391079195,1760305837757,-2088.78532203,0.000241,7]
[391079197,1760305837766,-1400.0,0.0002412,2]
[391079199,1760305837775,-166.0,0.0002412,3]
[391079201,1760305837786,-172.0,0.0002412,3]
[391079203,1760305837797,-503.6411007,0.00024121,2]
[391079205,1760305837807,-1000.0,0.00024121,2]
[391079206,1760305837816,-1000.0,0.00024121,2]
[391079208,1760305837826,-500.0,0.00024121,2]
[391079210,1760305837835,-1000.0,0.00024121,2]
[391079212,1760305837844,-1000.0,0.00024121,2]
[391079214,1760305837854,-1000.0,0.00024121,2]
[391079216,1760305837864,-897.0,0.00024129,2]
[391079218,1760305837873,-266.22660414,0.00024129,2]
[391079220,1760305837882,-223.0,0.00024144,2]
[391079222,1760305837891,-24655.28,0.0002415,2]
[391079224,1760305837901,-1891.02009098,0.00024152,2]
[391079226,1760305837910,-335.08575459,0.00024173,2]
[391079227,1760305837919,-541.95331646,0.00024183,2]
[391079228,1760305837936,-355.04668354,0.00024183,2]
[391079230,1760305837945,-522.47187339,0.00024206,2]
[391079232,1760305837957,-407.125,0.00024206,2]
[391079234,1760305837967,-255.49749186,0.00024206,2]
[391079300,1760305838346,-454.91864507,0.00022232,2]
[391079303,1760305838355,-500.0,0.00022232,2]
[391079306,1760305838365,-190.98135493,0.00022232,2]
[391079309,1760305838376,-309.01864507,0.00022232,2]
[391079312,1760305838386,-500.0,0.00022232,2]
[391079314,1760305838396,-500.0,0.00022232,2]
[391079316,1760305838405,-500.0,0.00022232,2]
[391079318,1760305838414,-500.0,0.00022232,2]
[391079320,1760305838424,-500.0,0.00022232,2]
[391079322,1760305838433,-500.0,0.00022232,2]
[391079324,1760305838445,-500.0,0.00022232,2]
[391079326,1760305838455,-500.0,0.00022232,2]
[391079328,1760305838464,-500.0,0.00022232,2]
[391079330,1760305838473,-500.0,0.00022232,2]
[391079332,1760305838483,-500.0,0.00022232,2]
[391079335,1760305838494,-500.0,0.00022232,2]
[391079337,1760305838508,-500.0,0.00022232,2]
[391079339,1760305838517,-500.0,0.00022232,2]
[391079341,1760305838527,-500.0,0.00022232,2]
[391079343,1760305838537,-500.0,0.00022232,2]
[391079345,1760305838547,-500.0,0.00022232,2]
[391079346,1760305838556,-500.0,0.00022232,2]
[391079349,1760305838565,-500.0,0.00022232,2]
[391079351,1760305838575,-500.0,0.00022232,2]
[391079353,1760305838584,-500.0,0.00022232,2]
[391079355,1760305838593,-500.0,0.00022232,2]
[391079357,1760305838604,-441.92024779,0.00022232,2]
[391079359,1760305838613,-500.0,0.00022232,2]
[391079361,1760305838622,-500.0,0.00022232,2]
[391079363,1760305838631,-500.0,0.00022232,2]
[391079364,1760305838641,-477.89993984,0.00022232,2]
[391079367,1760305838650,-500.0,0.00022232,2]
[391079369,1760305838660,-500.0,0.00022232,2]
[391079371,1760305838669,-500.0,0.00022232,2]
[391079373,1760305838678,-500.0,0.00022232,2]
[391079375,1760305838688,-500.0,0.00022232,2]
[391079377,1760305838697,-500.0,0.00022232,2]
[391079379,1760305838707,-500.0,0.00022232,2]
[391079381,1760305838716,-500.0,0.00022232,2]
[391079383,1760305838726,-500.0,0.00022232,2]
[391079385,1760305838736,-500.0,0.00022232,2]
[391079387,1760305838746,-500.0,0.00022232,2]
[391079389,1760305838756,-500.0,0.00022232,2]
[391079391,1760305838765,-500.0,0.00022232,2]
[391079393,1760305838776,-500.0,0.00022232,2]
[391079395,1760305838788,-500.0,0.00022232,2]
[391079397,1760305838798,-500.0,0.00022232,2]
[391079399,1760305838807,-500.0,0.00022232,2]
[391079401,1760305838817,-500.0,0.00022232,2]
[391079403,1760305838827,-500.0,0.00022232,2]
[391079405,1760305838836,-500.0,0.00022232,2]
[391079407,1760305838845,-500.0,0.00022232,2]
[391079409,1760305838855,-500.0,0.00022232,2]
[391079411,1760305838865,-500.0,0.00022232,2]
[391079413,1760305838875,-500.0,0.00022232,2]
[391079415,1760305838886,-500.0,0.00022232,2]
[391079417,1760305838896,-500.0,0.00022232,2]
[391079419,1760305838905,-500.0,0.00022232,2]
[391079421,1760305838915,-500.0,0.00022232,2]
[391079424,1760305838926,-500.0,0.00022232,2]
[391079426,1760305838935,-500.0,0.00022232,2]
[391079428,1760305838945,-500.0,0.00022232,2]
[391079430,1760305838954,-500.0,0.00022232,2]
[391079432,1760305838963,-500.0,0.00022232,2]
[391079434,1760305838973,-500.0,0.00022232,2]
[391079436,1760305838983,-500.0,0.00022232,2]
[391079438,1760305838992,-500.0,0.00022232,2]
[391079440,1760305839003,-500.0,0.00022232,2]
[391079442,1760305839012,-500.0,0.00022232,2]
[391079444,1760305839022,-500.0,0.00022232,2]
[391079446,1760305839032,-500.0,0.00022232,2]
[391079448,1760305839041,-500.0,0.00022232,2]
[391079450,1760305839051,-581.50825628,0.00022232,2]
[391079452,1760305839061,-433.2085237,0.00022232,2]
[391079454,1760305839070,-500.0,0.00022232,2]
[391079456,1760305839079,-500.0,0.00022232,2]
[391079458,1760305839089,-500.0,0.00022232,2]
[391079460,1760305839101,-137.94887111,0.00024206,2]
[391079462,1760305839110,-908.73608669,0.00024238,2]
[391079464,1760305839120,-151.0,0.000243,7]
[391079466,1760305839130,-151.0,0.000243,7]
[391079468,1760305839139,-151.0,0.000243,7]
[391079470,1760305839149,-151.0,0.000243,7]
[391079472,1760305839159,-326.996233,0.000243,7]
[391079474,1760305839168,-326.996233,0.000243,7]
[391079476,1760305839178,-326.996233,0.000243,7]
[391079478,1760305839188,-326.99623,0.000243,7]
[391079480,1760305839197,-402.2877588,0.000243,7]
[391079482,1760305839208,-800.0,0.00024329,2]
[391079485,1760305839217,-21776.95446736,0.00024344,2]
[391079486,1760305839227,-2626.6,0.0002435,3]
[391079489,1760305839236,-1313.3,0.0002435,3]
[391079491,1760305839246,-656.66,0.0002435,3]
[391079493,1760305839256,-328.32,0.0002435,3]
[391079495,1760305839266,-800.0,0.00024373,2]
[391079497,1760305839275,-496.05530136,0.000244,2]
[391079499,1760305839285,-323.16195222,0.000244,2]
[391079501,1760305839294,-162.65533597,0.000244,2]
[391079503,1760305839304,-1073.00007226,0.000244,2]
[391079505,1760305839313,-346.63567225,0.000244,2]
[391079507,1760305839323,-2238.54166935,0.000244,2]
[391079509,1760305839332,-2740.38620429,0.000244,2]
[391079511,1760305839342,-1323.04323636,0.00024425,2]